[Event "*** Titled Tuesday 3|2 Blitz"]
[Site "Chess.com"]
[Date "2016.07.05"]
[Round "5"]
[White "GianmarcoVaR"]
[Black "Boryboy"]
[Result "1-0"]
[WhiteElo "2389"]
[BlackElo "2509"]
[TimeControl "180+2"]
[EndTime "12:03:34 PDT"]
[Termination "GianmarcoVaR won by resignation"]

1. d4 {[%clk 0:02:46.1]} 1... e6 {[%clk 0:03:01.9]} 2. c4 {[%clk 0:02:47.3]}
2... d5 {[%clk 0:02:53.4]} 3. g3 {[%clk 0:02:47.7]} 3... Nf6 {[%clk 0:02:53.9]}
4. Bg2 {[%clk 0:02:49.6]} 4... dxc4 {[%clk 0:02:53.3]} 5. Nf3 {[%clk 0:02:51.5]}
5... Bb4+ {[%clk 0:02:53.9]} 6. Bd2 {[%clk 0:02:50.7]} 6... a5 {[%clk
0:02:54.6]} 7. Qc2 {[%clk 0:02:40.9]} 7... Bxd2+ {[%clk 0:02:54.5]} 8. Qxd2
{[%clk 0:02:42]} 8... c6 {[%clk 0:02:50.5]} 9. a4 {[%clk 0:02:42]} 9... Ne4
{[%clk 0:02:50.7]} 10. Qc2 {[%clk 0:02:34.3]} 10... Nd6 {[%clk 0:02:51.8]} 11.
Ne5 {[%clk 0:02:25.7]} 11... Na6 {[%clk 0:02:49.6]} 12. Na3 {[%clk 0:02:15.2]}
12... Nb4 {[%clk 0:02:48.1]} 13. Qd2 {[%clk 0:02:16.3]} 13... O-O {[%clk
0:02:44.3]} 14. O-O {[%clk 0:02:16]} 14... b6 {[%clk 0:01:40.4]} 15. Rfc1 {[%clk
0:02:02.3]} 15... Ba6 {[%clk 0:01:34.6]} 16. Naxc4 {[%clk 0:01:53.6]} 16... Nxc4
{[%clk 0:01:32.4]} 17. Nxc4 {[%clk 0:01:55.5]} 17... Rc8 {[%clk 0:01:33.6]} 18.
Qf4 {[%clk 0:01:23.8]} 18... Nd5 {[%clk 0:01:28.5]} 19. Qe5 {[%clk 0:01:03]}
19... Bxc4 {[%clk 0:00:54]} 20. Rxc4 {[%clk 0:01:02.3]} 20... Qd7 {[%clk
0:00:51.3]} 21. Rac1 {[%clk 0:00:58]} 21... Rfd8 {[%clk 0:00:52.3]} 22. h4
{[%clk 0:00:55.5]} 22... h6 {[%clk 0:00:53.2]} 23. e3 {[%clk 0:00:47.5]} 23...
Nb4 {[%clk 0:00:48.8]} 24. Qe4 {[%clk 0:00:45.9]} 24... c5 {[%clk 0:00:47.1]}
25. dxc5 {[%clk 0:00:36.8]} 25... bxc5 {[%clk 0:00:47.1]} 26. Rxc5 {[%clk
0:00:22]} 26... Rxc5 {[%clk 0:00:47.9]} 27. Rxc5 {[%clk 0:00:23.9]} 27... Qxa4
{[%clk 0:00:49.2]} 28. Rc7 {[%clk 0:00:24.5]} 28... Qd1+ {[%clk 0:00:46.8]} 29.
Kh2 {[%clk 0:00:23.8]} 29... Nd5 {[%clk 0:00:47.9]} 30. Rb7 {[%clk 0:00:20.3]}
30... Nf6 {[%clk 0:00:47.9]} 31. Qf4 {[%clk 0:00:17.5]} 31... e5 {[%clk
0:00:46]} 32. Qf5 {[%clk 0:00:14.9]} 32... h5 {[%clk 0:00:36.5]} 33. Bf3 {[%clk
0:00:12.4]} 33... Qd2 {[%clk 0:00:08.3]} 34. Bxh5 {[%clk 0:00:13.1]} 34... Rf8
{[%clk 0:00:09.7]} 35. Kg2 {[%clk 0:00:09.3]} 35... a4 {[%clk 0:00:08.4]} 36.
Bf3 {[%clk 0:00:06.7]} 36... Qd6 {[%clk 0:00:07.9]} 37. g4 {[%clk 0:00:07.6]}
37... Re8 {[%clk 0:00:07.9]} 38. g5 {[%clk 0:00:08.5]} 38... e4 {[%clk
0:00:09.5]} 39. gxf6 {[%clk 0:00:08.9]} 39... exf3+ {[%clk 0:00:10.5]} 40. Qxf3
{[%clk 0:00:09.7]} 40... g6 {[%clk 0:00:10.6]} 41. Re7 {[%clk 0:00:08.8]} 41...
Rxe7 {[%clk 0:00:11.3]} 42. fxe7 {[%clk 0:00:10.6]} 42... Qxe7 {[%clk
0:00:13.2]} 43. Qa8+ {[%clk 0:00:11.6]} 43... Kh7 {[%clk 0:00:13.9]} 44. Qxa4
{[%clk 0:00:13.1]} 44... Qb7+ {[%clk 0:00:15.1]} 45. Kg3 {[%clk 0:00:08.2]}
45... Qxb2 {[%clk 0:00:16.4]} 46. Qf4 {[%clk 0:00:08.4]} 46... Kg8 {[%clk
0:00:17.5]} 47. h5 {[%clk 0:00:08.1]} 47... gxh5 {[%clk 0:00:18.2]} 48. Qg5+
{[%clk 0:00:09.2]} 48... Kf8 {[%clk 0:00:19.1]} 49. Qd8+ {[%clk 0:00:09.8]}
49... Kg7 {[%clk 0:00:20.3]} 50. Qg5+ {[%clk 0:00:11.6]} 50... Kf8 {[%clk
0:00:22]} 51. Qh6+ {[%clk 0:00:13]} 51... Ke8 {[%clk 0:00:21.8]} 52. Qxh5 {[%clk
0:00:14]} 52... Qa1 {[%clk 0:00:21.1]} 53. Kf4 {[%clk 0:00:13.7]} 53... Qb2
{[%clk 0:00:20.2]} 54. Qe5+ {[%clk 0:00:14.4]} 54... Qxe5+ {[%clk 0:00:19]} 55.
Kxe5 {[%clk 0:00:15.8]} 55... Ke7 {[%clk 0:00:20.7]} 56. Kf5 {[%clk 0:00:15.9]}
56... Kf8 {[%clk 0:00:22.2]} 57. Kf6 {[%clk 0:00:17]} 57... Ke8 {[%clk
0:00:24.1]} 58. e4 {[%clk 0:00:18]} 58... Kf8 {[%clk 0:00:26]} 59. e5 {[%clk
0:00:19.3]} 59... Ke8 {[%clk 0:00:27.8]} 60. f4 {[%clk 0:00:19.2]} 60... Kf8
{[%clk 0:00:29.3]} 61. f5 {[%clk 0:00:20]} 61... Ke8 {[%clk 0:00:30.9]} 62. e6
{[%clk 0:00:21.2]} 62... Kf8 {[%clk 0:00:31.5]} 63. Ke5 {[%clk 0:00:07.8]} 63...
Ke7 {[%clk 0:00:32.4]} 64. f6+ {[%clk 0:00:05.2]} 64... Ke8 {[%clk 0:00:33.3]}
65. Kd6 {[%clk 0:00:04.3]} 65... Kf8 {[%clk 0:00:28.9]} 66. e7+ {[%clk
0:00:03.4]} 66... Ke8 {[%clk 0:00:30]} 67. Ke5 {[%clk 0:00:04.7]} 67... Kd7
{[%clk 0:00:31.1]} 68. Kf5 {[%clk 0:00:06.1]} 68... Ke8 {[%clk 0:00:32.3]} 69.
Kg5 {[%clk 0:00:07.5]} 69... Kd7 {[%clk 0:00:33.7]} 70. Kh6 {[%clk 0:00:08.9]}
1-0

[Event "*** Titled Tuesday 3|2 Blitz"]
[Site "Chess.com"]
[Date "2016.07.05"]
[Round "5"]
[White "Matibar"]
[Black "FCChelsea14"]
[Result "1-0"]
[WhiteElo "2584"]
[BlackElo "2407"]
[TimeControl "180+2"]
[EndTime "12:03:47 PDT"]
[Termination "Matibar won by resignation"]

1. g3 {[%clk 0:03:01.1]} 1... d5 {[%clk 0:03:00.1]} 2. Bg2 {[%clk 0:03:01.6]}
2... Nf6 {[%clk 0:03:01]} 3. d3 {[%clk 0:02:59.8]} 3... c6 {[%clk 0:03:01.8]} 4.
f4 {[%clk 0:03:01]} 4... g6 {[%clk 0:02:53.9]} 5. Nf3 {[%clk 0:03:01.4]} 5...
Bg7 {[%clk 0:02:55]} 6. O-O {[%clk 0:03:03.3]} 6... O-O {[%clk 0:02:56]} 7. e3
{[%clk 0:03:03.5]} 7... Bg4 {[%clk 0:02:52.3]} 8. Nbd2 {[%clk 0:02:59.5]} 8...
Qc8 {[%clk 0:02:49]} 9. Qe1 {[%clk 0:02:57.9]} 9... Bh3 {[%clk 0:02:48.9]} 10.
e4 {[%clk 0:02:56.2]} 10... dxe4 {[%clk 0:02:48.1]} 11. dxe4 {[%clk 0:02:56.8]}
11... Bxg2 {[%clk 0:02:47.7]} 12. Kxg2 {[%clk 0:02:58.7]} 12... Nbd7 {[%clk
0:02:40.9]} 13. e5 {[%clk 0:02:39.9]} 13... Nd5 {[%clk 0:02:40.8]} 14. Nc4
{[%clk 0:02:41.5]} 14... N7b6 {[%clk 0:02:39]} 15. Nxb6 {[%clk 0:02:39.1]} 15...
axb6 {[%clk 0:02:38.7]} 16. c4 {[%clk 0:02:40.1]} 16... Nc7 {[%clk 0:02:35.4]}
17. Be3 {[%clk 0:02:41.7]} 17... b5 {[%clk 0:02:31.2]} 18. cxb5 {[%clk
0:02:42.7]} 18... Nxb5 {[%clk 0:02:31.3]} 19. Qb4 {[%clk 0:02:37.8]} 19... Re8
{[%clk 0:02:28.3]} 20. Qb3 {[%clk 0:02:33.7]} 20... Nc7 {[%clk 0:02:27.3]} 21.
Rfd1 {[%clk 0:02:29.3]} 21... Nd5 {[%clk 0:02:28.2]} 22. Bf2 {[%clk 0:02:30.4]}
22... h6 {[%clk 0:02:12.2]} 23. Rac1 {[%clk 0:02:30.9]} 23... Qd7 {[%clk
0:02:10]} 24. Rd4 {[%clk 0:02:18.2]} 24... Kh7 {[%clk 0:02:10.3]} 25. a3 {[%clk
0:02:17.4]} 25... f6 {[%clk 0:02:06.2]} 26. Re1 {[%clk 0:02:17.3]} 26... f5
{[%clk 0:01:58.2]} 27. e6 {[%clk 0:02:03.5]} 27... Qc7 {[%clk 0:01:59]} 28. Rd2
{[%clk 0:02:02.2]} 28... Red8 {[%clk 0:01:52.6]} 29. Bd4 {[%clk 0:02:01.4]}
29... Bxd4 {[%clk 0:01:38.6]} 30. Rxd4 {[%clk 0:02:01.3]} 30... Qb6 {[%clk
0:01:39.9]} 31. Qc2 {[%clk 0:01:37]} 31... Rd6 {[%clk 0:01:40.7]} 32. Rd3 {[%clk
0:01:06.3]} 32... Rad8 {[%clk 0:01:40.3]} 33. Rb3 {[%clk 0:01:07.5]} 33... Qc7
{[%clk 0:01:35.9]} 34. Re2 {[%clk 0:01:08.6]} 34... Nf6 {[%clk 0:01:24.4]} 35.
Rbe3 {[%clk 0:01:09.5]} 35... Ne4 {[%clk 0:01:23.6]} 36. Rxe4 {[%clk 0:01:10.8]}
36... fxe4 {[%clk 0:01:24.4]} 37. Qxe4 {[%clk 0:01:12.4]} 37... Rf8 {[%clk
0:01:18]} 38. h4 {[%clk 0:00:59.3]} 38... Kg7 {[%clk 0:01:03.3]} 39. h5 {[%clk
0:00:57]} 39... gxh5 {[%clk 0:01:03.8]} 40. Nh4 {[%clk 0:00:57.4]} 40... Rf6
{[%clk 0:00:55.9]} 41. Nf5+ {[%clk 0:00:55]} 41... Kf8 {[%clk 0:00:56.1]} 42.
Nxd6 {[%clk 0:00:55.7]} 42... Qxd6 {[%clk 0:00:54.9]} 43. f5 {[%clk 0:00:39.3]}
43... Qc5 {[%clk 0:00:52.4]} 44. Rf2 {[%clk 0:00:37.7]} 44... Kg7 {[%clk
0:00:51.1]} 45. Qf4 {[%clk 0:00:35]} 45... Qd5+ {[%clk 0:00:48.2]} 46. Kh2
{[%clk 0:00:36]} 46... Kh7 {[%clk 0:00:48.9]} 47. a4 {[%clk 0:00:35.2]} 47...
Qc5 {[%clk 0:00:46]} 48. b4 {[%clk 0:00:35.9]} 48... Qc3 {[%clk 0:00:40.6]} 49.
Qc7 {[%clk 0:00:33.2]} 49... Qxb4 {[%clk 0:00:40.3]} 50. a5 {[%clk 0:00:32.9]}
50... h4 {[%clk 0:00:40.7]} 51. Qe5 {[%clk 0:00:32.2]} 51... Qg4 {[%clk
0:00:36.3]} 52. gxh4 {[%clk 0:00:29.4]} 52... Qxh4+ {[%clk 0:00:37]} 53. Kg2
{[%clk 0:00:30.8]} 53... Qg5+ {[%clk 0:00:37.2]} 54. Kf1 {[%clk 0:00:31.3]}
54... Qc1+ {[%clk 0:00:37.4]} 55. Ke2 {[%clk 0:00:31.6]} 55... Qc2+ {[%clk
0:00:37.2]} 56. Ke3 {[%clk 0:00:32.7]} 56... Qb3+ {[%clk 0:00:37.4]} 57. Kf4
{[%clk 0:00:31.9]} 57... Qb4+ {[%clk 0:00:34.1]} 58. Kg3 {[%clk 0:00:31.6]}
58... Rf8 {[%clk 0:00:32.7]} 59. Kh3 {[%clk 0:00:15.9]} 59... Rg8 {[%clk
0:00:30]} 60. Rg2 {[%clk 0:00:17.2]} 60... Rxg2 {[%clk 0:00:25.2]} 61. Kxg2
{[%clk 0:00:19.1]} 61... Qg4+ {[%clk 0:00:25.1]} 62. Kf2 {[%clk 0:00:19.8]}
62... h5 {[%clk 0:00:23.5]} 63. f6 {[%clk 0:00:18.1]} 63... Qh4+ {[%clk
0:00:19.7]} 64. Ke3 {[%clk 0:00:18.9]} 64... Qh3+ {[%clk 0:00:18.9]} 65. Kd4
{[%clk 0:00:18.9]} 65... Qg4+ {[%clk 0:00:16.6]} 66. Kc5 {[%clk 0:00:19.7]}
66... Qg1+ {[%clk 0:00:14.6]} 67. Qd4 {[%clk 0:00:17.8]} 67... Qxd4+ {[%clk
0:00:12.6]} 68. Kxd4 {[%clk 0:00:18.8]} 68... exf6 {[%clk 0:00:10.5]} 69. e7
{[%clk 0:00:19.9]} 69... h4 {[%clk 0:00:11.6]} 70. e8=Q {[%clk 0:00:21.2]} 70...
h3 {[%clk 0:00:13.3]} 71. Qh5+ {[%clk 0:00:22.1]} 1-0

[Event "*** Titled Tuesday 3|2 Blitz"]
[Site "Chess.com"]
[Date "2016.07.05"]
[Round "5"]
[White "josiwales"]
[Black "BellJackson95"]
[Result "0-1"]
[WhiteElo "2114"]
[BlackElo "2198"]
[TimeControl "180+2"]
[EndTime "12:03:57 PDT"]
[Termination "BellJackson95 won by resignation"]

1. e4 {[%clk 0:03:01.9]} 1... e5 {[%clk 0:02:59.9]} 2. Nf3 {[%clk 0:03:01.9]}
2... Nc6 {[%clk 0:03:01.3]} 3. Bc4 {[%clk 0:03:03.4]} 3... Nf6 {[%clk
0:03:02.6]} 4. Ng5 {[%clk 0:03:03.8]} 4... d5 {[%clk 0:03:03.8]} 5. exd5 {[%clk
0:03:05]} 5... Na5 {[%clk 0:03:05.3]} 6. Bb5+ {[%clk 0:03:06.2]} 6... c6 {[%clk
0:03:06.9]} 7. dxc6 {[%clk 0:03:07.3]} 7... bxc6 {[%clk 0:03:08.8]} 8. Qf3
{[%clk 0:03:08.5]} 8... Be7 {[%clk 0:03:09.5]} 9. Bxc6+ {[%clk 0:03:07]} 9...
Nxc6 {[%clk 0:03:11.4]} 10. Qxc6+ {[%clk 0:03:07.2]} 10... Bd7 {[%clk
0:03:12.9]} 11. Qc4 {[%clk 0:03:07.8]} 11... O-O {[%clk 0:03:13.9]} 12. Nc3
{[%clk 0:03:03.7]} 12... Rc8 {[%clk 0:03:09.4]} 13. Qe2 {[%clk 0:03:03.6]} 13...
Ng4 {[%clk 0:03:02.7]} 14. Nf3 {[%clk 0:02:53.1]} 14... Bd6 {[%clk 0:02:52.9]}
15. h3 {[%clk 0:02:53]} 15... Nh6 {[%clk 0:02:36]} 16. d3 {[%clk 0:02:53.1]}
16... Nf5 {[%clk 0:02:34.9]} 17. O-O {[%clk 0:02:51]} 17... Re8 {[%clk
0:02:19.4]} 18. Ne4 {[%clk 0:02:47.6]} 18... Bb8 {[%clk 0:02:18.2]} 19. Bg5
{[%clk 0:02:46.1]} 19... f6 {[%clk 0:02:16.7]} 20. Be3 {[%clk 0:02:46.5]} 20...
Bc6 {[%clk 0:02:03.4]} 21. Rad1 {[%clk 0:02:33.3]} 21... Nd4 {[%clk 0:01:57.6]}
22. Bxd4 {[%clk 0:02:30.7]} 22... exd4 {[%clk 0:01:58]} 23. Qd2 {[%clk
0:02:26.3]} 23... f5 {[%clk 0:01:42.6]} 24. Ng3 {[%clk 0:02:14.7]} 24... Bxf3
{[%clk 0:01:17.3]} 25. gxf3 {[%clk 0:02:14.9]} 25... f4 {[%clk 0:01:18.8]} 26.
Ne4 {[%clk 0:02:13.3]} 26... Qh4 {[%clk 0:01:15.8]} 27. Kh2 {[%clk 0:02:13.8]}
27... Re6 {[%clk 0:01:08.9]} 28. Rg1 {[%clk 0:02:08.7]} 28... Rh6 {[%clk
0:01:02.4]} 29. Ng5 {[%clk 0:02:09.2]} 29... Rc5 {[%clk 0:00:51.2]} 30. Rg4
{[%clk 0:01:47.2]} 30... Qh5 {[%clk 0:00:49.2]} 31. Qb4 {[%clk 0:01:20.4]} 31...
Bd6 {[%clk 0:00:33.1]} 32. Qb3+ {[%clk 0:01:17.8]} 32... Kf8 {[%clk 0:00:34.1]}
33. Ne6+ {[%clk 0:01:06.6]} 33... Ke7 {[%clk 0:00:33]} 34. Rxg7+ {[%clk
0:00:55.8]} 34... Kf6 {[%clk 0:00:30.8]} 35. Rf7+ {[%clk 0:00:34.2]} 35... Qxf7
{[%clk 0:00:17.4]} 36. Nxc5 {[%clk 0:00:33.2]} 36... Bxc5 {[%clk 0:00:18.9]} 37.
Qxf7+ {[%clk 0:00:23.8]} 37... Kxf7 {[%clk 0:00:20.8]} 38. Re1 {[%clk
0:00:23.6]} 38... Rb6 {[%clk 0:00:19.3]} 39. b3 {[%clk 0:00:23.9]} 39... Bd6
{[%clk 0:00:19.7]} 40. Re4 {[%clk 0:00:24.1]} 40... Bc5 {[%clk 0:00:17.4]} 41.
Rxf4+ {[%clk 0:00:24.4]} 41... Ke6 {[%clk 0:00:18.8]} 42. Re4+ {[%clk
0:00:24.9]} 42... Kd5 {[%clk 0:00:17.9]} 43. a4 {[%clk 0:00:23]} 43... Rg6
{[%clk 0:00:17.1]} 44. Rg4 {[%clk 0:00:19.6]} 44... Re6 {[%clk 0:00:17.2]} 45.
Re4 {[%clk 0:00:20]} 45... Rf6 {[%clk 0:00:17.6]} 46. Kg3 {[%clk 0:00:20]} 46...
Bd6+ {[%clk 0:00:18.4]} 47. Kg4 {[%clk 0:00:21]} 47... h5+ {[%clk 0:00:18.6]}
48. Kxh5 {[%clk 0:00:20.4]} 48... Rxf3 {[%clk 0:00:19.6]} 49. Re2 {[%clk
0:00:19.5]} 49... Rxh3+ {[%clk 0:00:19.6]} 50. Kg4 {[%clk 0:00:20.9]} 50... Rh1
{[%clk 0:00:19]} 51. Kf5 {[%clk 0:00:21.7]} 51... Rh8 {[%clk 0:00:13]} 52. Kf6
{[%clk 0:00:21.6]} 52... Rf8+ {[%clk 0:00:13.2]} 53. Kg7 {[%clk 0:00:22.2]}
53... Rf3 {[%clk 0:00:14.1]} 54. Kg6 {[%clk 0:00:22]} 54... a5 {[%clk
0:00:15.3]} 55. Kg5 {[%clk 0:00:22.5]} 55... Rf8 {[%clk 0:00:14.2]} 56. Kg6
{[%clk 0:00:23]} 56... Rc8 {[%clk 0:00:09.3]} 57. Kf5 {[%clk 0:00:20.9]} 57...
Rf8+ {[%clk 0:00:09.6]} 58. Kg6 {[%clk 0:00:21.5]} 58... Rc8 {[%clk 0:00:11.5]}
59. Kf5 {[%clk 0:00:22.2]} 59... Rg8 {[%clk 0:00:11.5]} 60. Kf6 {[%clk
0:00:20.3]} 60... Rg4 {[%clk 0:00:11.1]} 61. Kf5 {[%clk 0:00:20.9]} 61... Rf4+
{[%clk 0:00:12.2]} 62. Kg5 {[%clk 0:00:21.8]} 62... Kc5 {[%clk 0:00:10.2]} 63.
Kg6 {[%clk 0:00:19.2]} 63... Kb4 {[%clk 0:00:08.9]} 64. Kg5 {[%clk 0:00:20.2]}
64... Rf8 {[%clk 0:00:09.2]} 65. Kg4 {[%clk 0:00:17.6]} 65... Kc3 {[%clk
0:00:09.3]} 66. f3 {[%clk 0:00:17]} 66... Bf4 {[%clk 0:00:10.5]} 67. Kh5 {[%clk
0:00:14.3]} 67... Bd2 {[%clk 0:00:11.7]} 68. Re5 {[%clk 0:00:10.5]} 68... Kxc2
{[%clk 0:00:11.1]} 69. Rxa5 {[%clk 0:00:06.8]} 69... Bxa5 {[%clk 0:00:11.4]} 0-1

[Event "*** Titled Tuesday 3|2 Blitz"]
[Site "Chess.com"]
[Date "2016.07.05"]
[Round "5"]
[White "LyonBeast"]
[Black "LazovT"]
[Result "1/2-1/2"]
[WhiteElo "2728"]
[BlackElo "2312"]
[TimeControl "180+2"]
[EndTime "12:06:01 PDT"]
[Termination "Game drawn by repetition"]

1. c4 {[%clk 0:03:01.9]} 1... Nf6 {[%clk 0:02:58.1]} 2. Nc3 {[%clk 0:02:58.4]}
2... e5 {[%clk 0:02:56.5]} 3. g3 {[%clk 0:02:59.2]} 3... c6 {[%clk 0:02:54.1]}
4. Nf3 {[%clk 0:02:59.5]} 4... Bd6 {[%clk 0:02:51.2]} 5. Bg2 {[%clk 0:02:57.9]}
5... O-O {[%clk 0:02:50.3]} 6. d4 {[%clk 0:02:54.1]} 6... exd4 {[%clk
0:02:45.7]} 7. Nxd4 {[%clk 0:02:56]} 7... Bc7 {[%clk 0:02:46.2]} 8. O-O {[%clk
0:02:55.8]} 8... Re8 {[%clk 0:02:46.7]} 9. e4 {[%clk 0:02:54.6]} 9... Na6 {[%clk
0:02:43.2]} 10. Re1 {[%clk 0:02:53.4]} 10... Nc5 {[%clk 0:02:41.9]} 11. b4
{[%clk 0:02:49.1]} 11... Na6 {[%clk 0:02:39.3]} 12. Rb1 {[%clk 0:02:42.7]} 12...
d6 {[%clk 0:02:30.5]} 13. b5 {[%clk 0:02:19.3]} 13... Nc5 {[%clk 0:01:54.5]} 14.
bxc6 {[%clk 0:02:17.5]} 14... Ba5 {[%clk 0:01:48.2]} 15. Bd2 {[%clk 0:01:59.8]}
15... Ng4 {[%clk 0:01:29.5]} 16. cxb7 {[%clk 0:01:58.4]} 16... Nxb7 {[%clk
0:01:21.1]} 17. Rxb7 {[%clk 0:01:54.7]} 17... Qf6 {[%clk 0:01:20.4]} 18. Nf5
{[%clk 0:01:17.4]} 18... Bxb7 {[%clk 0:01:16]} 19. Nd5 {[%clk 0:01:07.3]} 19...
Bxd5 {[%clk 0:01:09.9]} 20. Bxa5 {[%clk 0:01:08.2]} 20... Bxe4 {[%clk
0:00:59.9]} 21. Bxe4 {[%clk 0:01:08.5]} 21... Rxe4 {[%clk 0:00:56.4]} 22. Rxe4
{[%clk 0:01:01.1]} 22... Qxf5 {[%clk 0:00:56.3]} 23. Qe2 {[%clk 0:00:50.4]}
23... Nf6 {[%clk 0:00:49.2]} 24. Rd4 {[%clk 0:00:42.1]} 24... Qxa5 {[%clk
0:00:47.5]} 25. Rxd6 {[%clk 0:00:43.8]} 25... Re8 {[%clk 0:00:37.4]} 26. Qc2
{[%clk 0:00:44.9]} 26... Qe1+ {[%clk 0:00:32.4]} 27. Kg2 {[%clk 0:00:46]} 27...
Re2 {[%clk 0:00:20.1]} 28. Rd8+ {[%clk 0:00:46.9]} 28... Ne8 {[%clk 0:00:21.4]}
29. Qf5 {[%clk 0:00:48.6]} 29... Re7 {[%clk 0:00:20.5]} 30. c5 {[%clk
0:00:48.8]} 30... g6 {[%clk 0:00:21.8]} 31. Qf3 {[%clk 0:00:48.3]} 31... Kg7
{[%clk 0:00:20.2]} 32. c6 {[%clk 0:00:49.8]} 32... Nc7 {[%clk 0:00:21.2]} 33.
Rd7 {[%clk 0:00:44.8]} 33... Qe6 {[%clk 0:00:20.2]} 34. Rd4 {[%clk 0:00:42.5]}
34... Nb5 {[%clk 0:00:18.8]} 35. Rb4 {[%clk 0:00:36.8]} 35... Nc7 {[%clk
0:00:18.9]} 36. Rb7 {[%clk 0:00:35.4]} 36... Qd6 {[%clk 0:00:18.7]} 37. Rxa7
{[%clk 0:00:35.4]} 37... Re6 {[%clk 0:00:19.2]} 38. Qc3+ {[%clk 0:00:31.8]}
38... Rf6 {[%clk 0:00:20.3]} 39. Ra5 {[%clk 0:00:24.4]} 39... Qxc6+ {[%clk
0:00:20.6]} 40. Qxc6 {[%clk 0:00:26]} 40... Rxc6 {[%clk 0:00:22.5]} 41. a4
{[%clk 0:00:27.8]} 41... Ra6 {[%clk 0:00:23.7]} 42. Rc5 {[%clk 0:00:29.1]} 42...
Ne6 {[%clk 0:00:25.2]} 43. Rc4 {[%clk 0:00:30.9]} 43... Kf6 {[%clk 0:00:26.2]}
44. Kf3 {[%clk 0:00:32]} 44... Ke5 {[%clk 0:00:27.5]} 45. Ke3 {[%clk 0:00:33.6]}
45... f5 {[%clk 0:00:28.3]} 46. Kd2 {[%clk 0:00:33.4]} 46... Kd5 {[%clk
0:00:29.7]} 47. Kc3 {[%clk 0:00:34.7]} 47... Nc5 {[%clk 0:00:30.5]} 48. Rd4+
{[%clk 0:00:35.5]} 48... Kc6 {[%clk 0:00:31.9]} 49. Rd8 {[%clk 0:00:34.7]} 49...
Nxa4+ {[%clk 0:00:31.6]} 50. Kd4 {[%clk 0:00:34.8]} 50... Nb6 {[%clk 0:00:32.1]}
51. Rh8 {[%clk 0:00:35.7]} 51... Ra7 {[%clk 0:00:33.4]} 52. Ke5 {[%clk
0:00:36.4]} 52... Rd7 {[%clk 0:00:33.6]} 53. h3 {[%clk 0:00:36.5]} 53... Nd5
{[%clk 0:00:34.9]} 54. Rc8+ {[%clk 0:00:31.6]} 54... Nc7 {[%clk 0:00:35.6]} 55.
Rh8 {[%clk 0:00:33.5]} 55... Rf7 {[%clk 0:00:35]} 56. h4 {[%clk 0:00:31.2]}
56... Kd7 {[%clk 0:00:35.8]} 57. f3 {[%clk 0:00:31.2]} 57... Ke7 {[%clk
0:00:36.7]} 58. g4 {[%clk 0:00:31.7]} 58... fxg4 {[%clk 0:00:36.2]} 59. fxg4
{[%clk 0:00:33.6]} 59... Ne8 {[%clk 0:00:37.8]} 60. g5 {[%clk 0:00:27]} 60...
Rf5+ {[%clk 0:00:35.9]} 61. Ke4 {[%clk 0:00:25.8]} 61... Rf7 {[%clk 0:00:35.9]}
62. Ke5 {[%clk 0:00:26.6]} 62... Rg7 {[%clk 0:00:37]} 63. Kf4 {[%clk 0:00:26.2]}
63... Kf7 {[%clk 0:00:38.3]} 64. Ke5 {[%clk 0:00:26.3]} 64... Ke7 {[%clk
0:00:38.8]} 65. Kf4 {[%clk 0:00:27.1]} 65... Nd6 {[%clk 0:00:21.7]} 66. Ra8
{[%clk 0:00:26.8]} 66... Ke6 {[%clk 0:00:21.5]} 67. Kg4 {[%clk 0:00:23.8]} 67...
Rb7 {[%clk 0:00:20.5]} 68. Rh8 {[%clk 0:00:23.8]} 68... Kd5 {[%clk 0:00:18.8]}
69. h5 {[%clk 0:00:23.2]} 69... Nf7 {[%clk 0:00:19.9]} 70. Rf8 {[%clk
0:00:19.9]} 70... Ne5+ {[%clk 0:00:16]} 71. Kh4 {[%clk 0:00:19.5]} 71... Rb4+
{[%clk 0:00:16.6]} 72. Kh3 {[%clk 0:00:21]} 72... gxh5 {[%clk 0:00:17.1]} 73.
Rf6 {[%clk 0:00:22.2]} 73... Rb7 {[%clk 0:00:17.2]} 74. Kh4 {[%clk 0:00:23]}
74... Ng6+ {[%clk 0:00:17.9]} 75. Kxh5 {[%clk 0:00:24.4]} 75... Ke5 {[%clk
0:00:19.2]} 76. Kh6 {[%clk 0:00:25.3]} 76... Re7 {[%clk 0:00:19.2]} 77. Rf1
{[%clk 0:00:26.2]} 77... Ke6 {[%clk 0:00:17.9]} 78. Rf6+ {[%clk 0:00:26.2]}
78... Kd7 {[%clk 0:00:17.7]} 79. Rf1 {[%clk 0:00:28.1]} 79... Ke8 {[%clk
0:00:19]} 80. Rf6 {[%clk 0:00:29.2]} 80... Nf8 {[%clk 0:00:20]} 81. Ra6 {[%clk
0:00:30.1]} 81... Kf7 {[%clk 0:00:19.7]} 82. Rf6+ {[%clk 0:00:30.9]} 82... Kg8
{[%clk 0:00:21.1]} 83. Rf1 {[%clk 0:00:32.6]} 83... Rg7 {[%clk 0:00:22.4]} 84.
Ra1 {[%clk 0:00:32.4]} 84... Rg6+ {[%clk 0:00:23.7]} 85. Kh5 {[%clk 0:00:34]}
85... Ne6 {[%clk 0:00:23.6]} 86. Ra8+ {[%clk 0:00:35.1]} 86... Kg7 {[%clk
0:00:24.4]} 87. Ra7+ {[%clk 0:00:37]} 87... Kh8 {[%clk 0:00:25.8]} 88. Ra8+
{[%clk 0:00:37.8]} 88... Rg8 {[%clk 0:00:26.9]} 89. Ra5 {[%clk 0:00:34.8]} 89...
Nf4+ {[%clk 0:00:27.3]} 90. Kg4 {[%clk 0:00:35.5]} 90... Ng6 {[%clk 0:00:28.7]}
91. Kh5 {[%clk 0:00:36.6]} 91... Rf8 {[%clk 0:00:30.1]} 92. Kh6 {[%clk
0:00:37.6]} 92... Ne5 {[%clk 0:00:28]} 93. Rxe5 {[%clk 0:00:38]} 93... Rg8
{[%clk 0:00:29.5]} 94. Re6 {[%clk 0:00:37]} 94... Rf8 {[%clk 0:00:26.4]} 95. Re7
{[%clk 0:00:37.9]} 95... Kg8 {[%clk 0:00:26]} 96. Rg7+ {[%clk 0:00:38.9]} 96...
Kh8 {[%clk 0:00:26.8]} 97. Rxh7+ {[%clk 0:00:40.8]} 97... Kg8 {[%clk 0:00:28.5]}
98. g6 {[%clk 0:00:42]} 98... Rf1 {[%clk 0:00:28.6]} 99. Rg7+ {[%clk 0:00:43.5]}
99... Kh8 {[%clk 0:00:30.1]} 100. Rf7 {[%clk 0:00:45.4]} 100... Rh1+ {[%clk
0:00:29.2]} 101. Kg5 {[%clk 0:00:46.6]} 101... Rg1+ {[%clk 0:00:28.9]} 102. Kh6
{[%clk 0:00:48.5]} 102... Rh1+ {[%clk 0:00:30]} 103. Kg5 {[%clk 0:00:50.4]}
103... Rg1+ {[%clk 0:00:31.5]} 104. Kh6 {[%clk 0:00:52.3]} 104... Rh1+ {[%clk
0:00:33]} 105. Kg5 {[%clk 0:00:53.6]} 105... Rg1+ {[%clk 0:00:34.4]} 106. Kh6
{[%clk 0:00:55.5]} 1/2-1/2

[Event "*** Titled Tuesday 3|2 Blitz"]
[Site "Chess.com"]
[Date "2016.07.05"]
[Round "6"]
[White "Makalexa"]
[Black "bilelou"]
[Result "0-1"]
[WhiteElo "2172"]
[BlackElo "2274"]
[TimeControl "180+2"]
[EndTime "12:10:30 PDT"]
[Termination "bilelou won by checkmate"]

1. e4 {[%clk 0:02:54.3]} 1... c5 {[%clk 0:03:00.7]} 2. Nf3 {[%clk 0:02:54.9]}
2... d6 {[%clk 0:02:55.7]} 3. d4 {[%clk 0:02:55.9]} 3... cxd4 {[%clk 0:02:56.9]}
4. Nxd4 {[%clk 0:02:57.8]} 4... Nf6 {[%clk 0:02:58.3]} 5. Nc3 {[%clk 0:02:57.9]}
5... a6 {[%clk 0:02:59.1]} 6. Bg5 {[%clk 0:02:57.6]} 6... Nbd7 {[%clk
0:02:59.6]} 7. f4 {[%clk 0:02:52.3]} 7... Qc7 {[%clk 0:02:34.2]} 8. Qf3 {[%clk
0:02:51.2]} 8... b5 {[%clk 0:02:33.4]} 9. O-O-O {[%clk 0:02:46.1]} 9... Bb7
{[%clk 0:02:34.5]} 10. g4 {[%clk 0:02:45]} 10... e5 {[%clk 0:02:30.2]} 11. Nf5
{[%clk 0:02:41.2]} 11... g6 {[%clk 0:02:30.4]} 12. Bxf6 {[%clk 0:02:24.8]} 12...
Nxf6 {[%clk 0:02:29.7]} 13. Bxb5+ {[%clk 0:02:25.1]} 13... axb5 {[%clk
0:01:58.3]} 14. Nxb5 {[%clk 0:02:27]} 14... Qb6 {[%clk 0:01:59.3]} 15. Nfxd6+
{[%clk 0:02:20.2]} 15... Bxd6 {[%clk 0:01:59.5]} 16. Nxd6+ {[%clk 0:02:20.6]}
16... Kf8 {[%clk 0:01:57.4]} 17. fxe5 {[%clk 0:02:20.2]} 17... Rxa2 {[%clk
0:01:57.9]} 18. b3 {[%clk 0:01:39.3]} 18... Qc5 {[%clk 0:01:55.1]} 19. Qxf6
{[%clk 0:01:28]} 19... Qxc2# {[%clk 0:01:55.5]} 0-1